bitfinex/quotes_BTCUSD_20250620
["timestamp","ask_amount","ask_price","bid_price","bid_amount"]
[1750445811332,0.81574111,103340.0,103330.0,0.03114104]
[1750445811588,0.81574111,103340.0,103330.0,0.00034104]
[1750445812659,6.17557111,103340.0,103330.0,0.00034104]
[1750445813714,6.19869573,103340.0,103330.0,0.00034104]
[1750445815877,6.16669573,103340.0,103330.0,0.00034104]
[1750445816512,6.19779573,103340.0,103330.0,0.00034104]
[1750445817598,6.16669573,103340.0,103330.0,0.00034104]
[1750445818182,6.26196558,103340.0,103330.0,0.00034104]
[1750445818638,6.19577173,103340.0,103330.0,0.00034104]
[1750445819046,6.16397173,103340.0,103330.0,0.00034104]
[1750445819252,6.19717173,103340.0,103330.0,0.00034104]
[1750445819672,6.36325173,103340.0,103330.0,0.00034104]
[1750445820075,6.15401173,103340.0,103330.0,0.00034104]
[1750445820304,6.44064013,103340.0,103330.0,0.00034104]
[1750445820543,6.91837296,103340.0,103330.0,0.00034104]
[1750445820968,6.92738868,103340.0,103330.0,0.00034104]
[1750445821385,6.43105636,103340.0,103330.0,0.00034104]
[1750445821587,6.30892711,103340.0,103330.0,0.00034104]
[1750445821807,6.31492711,103340.0,103330.0,0.00034104]
[1750445822004,6.33802884,103340.0,103330.0,0.00034104]
[1750445822418,6.37112884,103340.0,103330.0,0.00034104]
[1750445823039,0.86652775,103340.0,103330.0,0.06184104]
[1750445823242,0.86652775,103340.0,103330.0,0.06303104]
[1750445823243,1.32974111,103340.0,103330.0,0.06303104]
[1750445823454,6.28477111,103340.0,103330.0,0.06303104]
[1750445823655,6.28477111,103340.0,103330.0,0.06184104]
[1750445823866,6.28177111,103340.0,103330.0,0.06184104]
[1750445824286,6.28277111,103340.0,103330.0,0.06184104]
[1750445824505,6.27677111,103340.0,103330.0,0.25539567]
[1750445824708,1.32474111,103340.0,103330.0,0.2650733]
[1750445824915,1.24881492,103340.0,103330.0,0.27594075]
[1750445825245,0.77592552,103340.0,103330.0,0.25658567]
[1750445825447,1.23913888,103340.0,103330.0,0.25658567]
[1750445825680,1.21678605,103340.0,103330.0,0.06184104]
[1750445825892,6.17281605,103340.0,103330.0,0.25539567]
[1750445826068,1.21778605,103340.0,103330.0,0.25539567]
[1750445826301,0.75357269,103340.0,103330.0,0.27594103]
[1750445826505,1.21678605,103340.0,103330.0,0.27594103]
[1750445826717,0.40355321,103340.0,103330.0,0.3441929]
[1750445826959,1.0699787,103340.0,103330.0,0.26626321]
[1750445827162,0.8764428,103340.0,103330.0,0.28561792]
[1750445827375,0.8764428,103340.0,103330.0,0.25658567]
[1750445827376,1.06030247,103340.0,103330.0,0.25658567]
[1750445827578,1.06030247,103340.0,103330.0,0.2662633]
[1750445827750,1.06030247,103340.0,103330.0,0.25658567]
[1750445828324,0.59708911,103340.0,103330.0,0.27594075]
[1750445828694,1.15557232,103340.0,103330.0,0.06303104]
[1750445828894,1.06030247,103340.0,103330.0,0.06184104]
[1750445829100,1.22698247,103340.0,103330.0,0.06184104]
[1750445829308,1.22698247,103340.0,103330.0,0.06303104]
[1750445829521,1.22698247,103340.0,103330.0,0.06184104]
[1750445830541,1.22698247,103340.0,103330.0,0.2662634]
[1750445830744,1.22698247,103340.0,103330.0,0.27594103]
[1750445832264,0.7540926,103340.0,103330.0,0.28561857]
[1750445832504,1.21730596,103340.0,103330.0,0.06303104]
[1750445833456,1.21730596,103340.0,103330.0,0.25658567]
[1750445833856,1.21730596,103340.0,103330.0,0.06303104]
[1750445834672,1.21730596,103340.0,103330.0,0.06184104]
[1750445835265,1.21730596,103340.0,103330.0,0.25539567]
[1750445835465,1.21730596,103340.0,103330.0,0.06184104]
[1750445835815,1.21730596,103340.0,103330.0,0.06303104]
[1750445836017,6.17233596,103340.0,103330.0,0.06184104]
[1750445836391,0.5874126,103340.0,103330.0,0.2662633]
[1750445836585,1.06030238,103340.0,103330.0,0.33548288]
[1750445836790,1.05062596,103340.0,103330.0,0.25658567]
[1750445837039,1.20730926,103340.0,103330.0,0.25658567]
[1750445837669,6.25885819,103340.0,103330.0,0.00034104]
[1750445837802,6.29065819,103340.0,103330.0,0.00034104]
[1750445838006,6.31381789,103340.0,103330.0,0.00034104]
[1750445838587,6.28202502,103340.0,103330.0,0.00034104]
[1750445838781,5.79564483,103340.0,103330.0,0.00034104]
[1750445838945,6.25885819,103340.0,103330.0,0.03234104]
[1750445839563,6.09249819,103340.0,103330.0,0.06284104]
[1750445839765,5.55335929,103340.0,103330.0,0.2866181]
[1750445839971,6.02624897,103340.0,103330.0,0.28661819]
[1750445840912,5.98180897,103340.0,103330.0,0.25758567]
[1750445841133,6.18309265,103340.0,103330.0,0.25758567]
[1750445841332,6.18309265,103340.0,103330.0,0.2672634]
[1750445842009,6.17341605,103340.0,103330.0,0.06284104]
[1750445842817,6.17341605,103340.0,103330.0,0.25639567]
[1750445843019,6.17341605,103340.0,103330.0,0.25758567]
[1750445843223,6.17341605,103340.0,103330.0,0.27694084]
[1750445843434,6.17341605,103340.0,103330.0,0.33658319]
[1750445843680,6.17341605,103340.0,103330.0,0.28661829]
[1750445843875,6.17341605,103340.0,103330.0,0.26726321]
[1750445844087,5.83341605,103340.0,103330.0,0.25758567]
[1750445844701,5.83341605,103340.0,103330.0,0.2672634]
[1750445844896,5.83341605,103340.0,103330.0,0.27694094]
[1750445845078,5.83341605,103340.0,103330.0,0.27694103]
[1750445845461,5.59066326,103340.0,103330.0,0.2672634]
[1750445845889,0.86770926,103340.0,103330.0,0.2672634]
[1750445846093,0.86770926,103340.0,103330.0,0.06403104]
[1750445846320,0.86770926,103340.0,103330.0,0.25758567]
[1750445846521,0.86770926,103340.0,103330.0,0.2672633]
[1750445846686,0.88706256,103340.0,103330.0,0.27694075]
[1750445847583,0.88706256,103340.0,103330.0,0.32690553]
[1750445848635,0.87738605,103340.0,103330.0,0.25758567]
[1750445848843,0.87738605,103340.0,103330.0,0.2672633]
[1750445849049,0.87738605,103340.0,103330.0,0.28661829]
[1750445849502,0.87738605,103340.0,103330.0,0.25758567]
[1750445849912,0.87738605,103340.0,103330.0,0.2672634]
[1750445850120,0.86770926,103340.0,103330.0,0.2672634]
[1750445850522,1.20770926,103340.0,103330.0,0.27694103]
[1750445850727,1.21738596,103340.0,103330.0,0.27694103]
[1750445850944,1.21738596,103340.0,103330.0,0.28661848]
[1750445851151,0.87738596,103340.0,103330.0,0.29629583]
[1750445851360,0.88706238,103340.0,103330.0,0.29629583]
[1750445851564,1.22706238,103340.0,103330.0,0.29629583]
[1750445851766,1.04240261,103340.0,103330.0,0.35591721]
[1750445851981,0.71581867,103350.0,103340.0,0.28726534]
[1750445852197,1.23587724,103350.0,103340.0,0.2690826]
[1750445852411,1.23587724,103350.0,103340.0,0.2594059]
[1750445852621,1.68941531,103350.0,103340.0,0.0647]
[1750445853441,1.69165531,103350.0,103340.0,0.0647]
[1750445853649,6.41460931,103350.0,103340.0,0.0647]
[1750445854282,6.41460931,103350.0,103340.0,0.2582359]
[1750445855300,6.40493374,103350.0,103340.0,0.0647]
[1750445855506,6.40493374,103350.0,103340.0,0.2582359]
[1750445855930,6.40493374,103350.0,103340.0,0.0647]
[1750445857132,6.40493374,103350.0,103340.0,0.2582359]
[1750445857338,5.94048038,103350.0,103340.0,0.2582359]
[1750445857478,5.94048038,103350.0,103340.0,0.26791269]
[1750445857873,5.94048038,103350.0,103340.0,0.2582359]
[1750445858770,5.94048038,103350.0,103340.0,0.0647]
[1750445859330,5.94172038,103350.0,103340.0,0.0647]
[1750445859542,6.40493374,103350.0,103340.0,0.0647]
[1750445860023,5.94048038,103350.0,103340.0,0.2582359]
[1750445860224,1.21752638,103350.0,103340.0,0.2679125]
[1750445860431,1.22720195,103350.0,103340.0,0.26908269]
[1750445860646,1.21752638,103350.0,103340.0,0.0647]
[1750445860867,1.68197974,103350.0,103340.0,0.0317]
[1750445861518,1.68197974,103350.0,103340.0,0.0633]
[1750445862133,1.68197974,103350.0,103340.0,0.0317]
[1750445862977,5.27584301,103340.0,103330.0,0.25639567]
[1750445863196,5.73905637,103340.0,103330.0,0.06284104]
[1750445863432,5.73905637,103340.0,103330.0,0.00034104]
[1750445863433,6.0317353,103340.0,103330.0,0.00034104]
[1750445863658,6.0007353,103340.0,103330.0,0.00034104]
[1750445863857,6.0007353,103340.0,103330.0,0.06244104]
[1750445864066,6.0007353,103340.0,103330.0,0.03154104]
[1750445864270,6.0007353,103340.0,103330.0,0.03254104]
[1750445865156,6.0007353,103340.0,103330.0,0.03454104]
[1750445865380,6.0007353,103340.0,103330.0,0.06544104]
[1750445866130,6.0007353,103340.0,103330.0,0.03454104]
[1750445866567,6.0007353,103340.0,103330.0,0.06544104]
[1750445866749,6.0007353,103340.0,103330.0,0.03454104]
[1750445867585,6.0007353,103340.0,103330.0,0.00334104]
[1750445867791,6.0317353,103340.0,103330.0,0.00334104]
[1750445868426,6.54865667,103340.0,103330.0,0.00334104]
[1750445868632,6.57584333,103340.0,103330.0,0.00334104]
[1750445868844,6.63124518,103340.0,103330.0,0.00334104]
[1750445869057,5.26618617,103330.0,103320.0,0.0001]
[1750445869270,6.61706307,103330.0,103320.0,0.00057029]
[1750445869477,5.32934584,103320.0,103310.0,0.0001]
[1750445869684,6.61120754,103320.0,103310.0,0.0001]
[1750445870298,6.62098954,103320.0,103310.0,0.0001]
[1750445871532,6.57106418,103320.0,103310.0,0.0001]
[1750445871745,6.5620015,103320.0,103310.0,0.0001]
[1750445872158,6.5670015,103320.0,103310.0,0.0001]
[1750445872578,6.30269349,103320.0,103310.0,0.0001]
[1750445872788,6.03877813,103320.0,103310.0,0.0625]
[1750445873211,6.03877813,103320.0,103310.0,0.06367]
[1750445874642,6.50199149,103320.0,103310.0,0.0625]
[1750445875488,6.59845134,103320.0,103310.0,0.0001]
[1750445875863,6.50199149,103320.0,103310.0,0.062]
[1750445876069,6.50318149,103320.0,103310.0,0.062]
[1750445877392,6.50199149,103320.0,103310.0,0.062]
[1750445880768,6.50318149,103320.0,103310.0,0.062]
[1750445881502,6.50199149,103320.0,103310.0,0.062]
[1750445881978,6.50199149,103320.0,103310.0,0.2664117]
[1750445881979,1.16022251,103320.0,103310.0,0.2664117]
[1750445882398,1.16022251,103320.0,103310.0,0.27609121]
[1750445882824,1.16022251,103320.0,103310.0,0.2664117]
[1750445883028,1.15054413,103320.0,103310.0,0.2664117]
[1750445883242,1.06494377,103320.0,103310.0,0.28577044]
[1750445883666,0.0243563,103320.0,103310.0,0.29544938]
[1750445883899,0.55792928,103320.0,103310.0,0.28577044]
[1750445884109,0.39139106,103320.0,103310.0,0.30512861]
[1750445884316,0.37203402,103320.0,103310.0,0.30512795]
[1750445884725,0.58496499,103320.0,103310.0,0.28576997]
[1750445884924,1.04817835,103320.0,103310.0,0.29544901]
[1750445885126,0.81289137,103320.0,103310.0,0.30512795]
[1750445885395,0.82256966,103320.0,103310.0,0.30512795]
[1750445885583,0.35067801,103320.0,103310.0,0.30512795]
[1750445885832,0.3603562,103320.0,103310.0,0.30512795]
[1750445886040,0.35067801,103320.0,103310.0,0.30512795]
[1750445886297,0.35067791,103320.0,103310.0,0.30512795]
[1750445886504,0.35935592,103320.0,103310.0,0.30512795]
[1750445886751,0.35935592,103320.0,103310.0,0.30612795]
[1750445886962,0.37871278,103320.0,103310.0,0.29644901]
[1750445887170,0.84192614,103320.0,103310.0,0.30612795]
[1750445887377,0.84192605,103320.0,103310.0,0.30612795]
[1750445887626,0.82256928,103320.0,103310.0,0.30712795]
[1750445887850,0.34967791,103320.0,103310.0,0.30712795]
[1750445889054,0.3593561,103320.0,103310.0,0.30712795]
[1750445889260,0.36903448,103320.0,103310.0,0.30712795]
[1750445889673,0.37871296,103320.0,103310.0,0.30712795]
[1750445890103,0.37871296,103320.0,103310.0,0.29744901]
[1750445890104,0.8419265,103320.0,103310.0,0.29744901]
[1750445890307,0.84192632,103320.0,103310.0,0.29744901]
[1750445890517,0.84192632,103320.0,103310.0,0.30712795]
[1750445890928,0.83224784,103320.0,103310.0,0.30712795]
[1750445891167,0.82256946,103320.0,103310.0,0.30712795]
[1750445891557,0.81289127,103320.0,103310.0,0.30712795]
[1750445891762,0.34967791,103320.0,103310.0,0.30712795]
[1750445891968,0.83224757,103320.0,103310.0,0.30712795]
[1750445892176,0.82256928,103320.0,103310.0,0.30712795]
[1750445892385,0.34,103320.0,103310.0,0.37373377]
[1750445892592,0.01014695,103330.0,103320.0,0.22260823]
[1750445892793,0.35014695,103330.0,103320.0,0.45322823]
[1750445893212,0.35014686,103330.0,103320.0,0.45322823]
[1750445893450,0.35014686,103330.0,103320.0,0.48129232]
[1750445893712,0.35982402,103330.0,103320.0,0.48129232]
[1750445894131,0.34046988,103330.0,103320.0,0.48129232]
[1750445894346,0.00046988,103330.0,103320.0,0.48129232]
[1750445894557,0.00046988,103330.0,103320.0,1.03978461]
[1750445894764,0.00046988,103330.0,103320.0,0.57657125]
[1750445895003,0.00146988,103330.0,103320.0,0.57657125]
[1750445895209,0.01114676,103330.0,103320.0,0.57657125]
[1750445895417,0.01114686,103330.0,103320.0,0.57657125]
[1750445895635,0.01982402,103330.0,103320.0,0.54850716]
[1750445895853,1.01659267,103330.0,103320.0,0.065]
[1750445896064,0.55293003,103320.0,103310.0,0.27635065]
[1750445896330,1.01614339,103320.0,103310.0,0.26667161]
[1750445896547,1.01614339,103320.0,103310.0,0.27635102]
[1750445896748,1.00646529,103320.0,103310.0,0.28603034]
[1750445896970,0.99678672,103320.0,103310.0,0.2666717]
[1750445897180,1.0064652,103320.0,103310.0,0.28603053]
[1750445897393,1.0064652,103320.0,103310.0,0.29570966]
[1750445897619,1.0064652,103320.0,103310.0,0.29784966]
[1750445898040,1.0064652,103320.0,103310.0,0.27849121]
[1750445898252,1.0064652,103320.0,103310.0,0.28817062]
[1750445898453,1.0502652,103320.0,103310.0,0.2579921]
[1750445898658,1.04058672,103320.0,103310.0,0.2676717]
[1750445898883,5.76354072,103320.0,103310.0,0.0644]
[1750445899091,5.76473072,103320.0,103310.0,0.0316]
[1750445899294,1.04177672,103320.0,103310.0,0.2251921]
[1750445900153,1.04177672,103320.0,103310.0,0.2241921]
[1750445900364,1.0514552,103320.0,103310.0,0.23387151]
[1750445900569,1.0514552,103320.0,103310.0,0.26447151]
[1750445901207,1.0514552,103320.0,103310.0,0.27415083]
[1750445901838,1.0524552,103320.0,103310.0,0.27415083]
[1750445902195,1.0512652,103320.0,103310.0,0.28383006]
[1750445902877,1.0512652,103320.0,103310.0,0.29350919]
[1750445903084,1.06094339,103320.0,103310.0,0.29350919]
[1750445903226,1.07062205,103320.0,103310.0,0.29350919]
[1750445903842,1.06094386,103320.0,103310.0,0.2547921]
[1750445904050,1.06213386,103320.0,103310.0,0.2547921]
[1750445904258,1.05245538,103320.0,103310.0,0.2547921]
[1750445904452,1.05245538,103320.0,103310.0,0.27415111]
[1750445904666,1.05245538,103320.0,103310.0,0.0612]
[1750445904864,1.05245538,103320.0,103310.0,0.0306]
[1750445905109,1.05245538,103320.0,103310.0,0.2241921]
[1750445905705,1.05245538,103320.0,103310.0,0.23387161]
[1750445905908,1.05245538,103320.0,103310.0,0.24355102]
[1750445906202,1.21676538,103320.0,103310.0,0.0306]
[1750445906634,1.24966538,103320.0,103310.0,0.0001]
[1750445906835,1.34493523,103320.0,103310.0,0.0001]
[1750445907039,6.62638152,103320.0,103310.0,0.0001]
[1750445907250,6.65818152,103320.0,103310.0,0.0001]
[1750445908349,6.62638152,103320.0,103310.0,0.0001]
[1750445909096,6.65878152,103320.0,103310.0,0.0001]
[1750445910391,6.68197611,103320.0,103310.0,0.0001]
[1750445914760,0.20327151,103310.0,103300.0,0.0002]
[1750445914937,5.7140178,103310.0,103300.0,0.0002]
[1750445916189,5.7150178,103310.0,103300.0,0.0002]
[1750445917050,5.79451482,103310.0,103300.0,0.0002]
[1750445918104,5.82345837,103310.0,103300.0,0.0002]
[1750445918975,6.16345837,103310.0,103300.0,0.0002]
[1750445919377,6.19254237,103310.0,103300.0,0.0002]
[1750445919935,6.21570791,103310.0,103300.0,0.0002]
[1750445921392,6.19254237,103310.0,103300.0,0.0002]
[1750445921598,0.57513119,103300.0,103290.0,0.0001]
[1750445921807,6.61212069,103300.0,103290.0,0.0001]
[1750445922267,6.62666154,103300.0,103290.0,0.0001]
[1750445922849,6.62666154,103300.0,103290.0,0.0011]
[1750445923087,6.62966154,103300.0,103290.0,0.0011]
[1750445923304,5.36566412,103300.0,103290.0,0.0301]
[1750445923504,6.03663748,103300.0,103290.0,0.0301]
[1750445924000,6.03863748,103300.0,103290.0,0.0001]
[1750445925023,6.50185084,103300.0,103290.0,0.0001]
[1750445925227,6.67536154,103300.0,103290.0,0.0001]
[1750445925457,5.29900487,103290.0,103280.0,0.0002]
[1750445925625,6.48507052,103290.0,103280.0,0.0002]
[1750445926289,6.51717052,103290.0,103280.0,0.0002]
[1750445926704,6.51764011,103290.0,103280.0,0.0002]
[1750445926891,6.61290996,103290.0,103280.0,0.0002]
[1750445927340,6.64199996,103290.0,103280.0,0.0002]
[1750445929298,6.60989996,103290.0,103280.0,0.0002]
[1750445931482,6.51463011,103290.0,103280.0,0.0002]
[1750445931898,6.48303011,103290.0,103280.0,0.0002]
[1750445932319,6.31867011,103290.0,103280.0,0.0002]
[1750445932520,6.52643011,103290.0,103280.0,0.0002]
[1750445936224,6.55663011,103290.0,103280.0,0.0002]
[1750445936428,6.67504747,103290.0,103280.0,0.0002]
[1750445937788,5.33306455,103280.0,103270.0,0.0001]
[1750445938004,6.54223771,103280.0,103270.0,0.0001]
[1750445938919,6.50933771,103280.0,103270.0,0.0001]
[1750445939119,6.60460756,103280.0,103270.0,0.0001]
[1750445939521,6.60660756,103280.0,103270.0,0.0001]
[1750445940122,6.60960756,103280.0,103270.0,0.0001]
[1750445940332,6.63475196,103280.0,103270.0,0.0001]
[1750445940585,6.70003155,103280.0,103270.0,0.0001]
[1750445941372,0.54335024,103270.0,103260.0,0.0001]
[1750445941552,6.60472725,103270.0,103260.0,0.0001]
[1750445942133,0.54454994,103260.0,103250.0,0.0002]
[1750445942349,6.30125021,103260.0,103250.0,0.0002]
[1750445942552,6.51808449,103260.0,103250.0,0.0002]
[1750445942755,6.57270944,103260.0,103250.0,0.0002]
[1750445942966,6.57949235,103260.0,103250.0,0.0002]
[1750445943364,6.57949235,103260.0,103240.0,0.0001]
[1750445943365,0.20338964,103250.0,103240.0,0.0001]
[1750445943599,5.65033593,103250.0,103240.0,0.0001]
[1750445944006,6.11354929,103250.0,103240.0,0.0001]
[1750445944213,6.16678277,103250.0,103240.0,0.0001]
[1750445944419,6.48364929,103250.0,103240.0,0.0001]
[1750445944626,5.36262257,103250.0,103240.0,0.06103652]
[1750445944836,6.03351593,103250.0,103240.0,0.06103652]
[1750445945413,6.03351593,103250.0,103240.0,0.06203652]
[1750445945589,6.06261693,103250.0,103240.0,0.06203652]
[1750445946638,6.1865621,103250.0,103240.0,0.06203652]
[1750445947289,6.1877421,103250.0,103240.0,0.06203652]
[1750445947956,6.1877421,103250.0,103240.0,0.03163652]
[1750445948185,6.1877421,103250.0,103240.0,0.00123652]
[1750445949050,6.2208421,103250.0,103240.0,0.00123652]
[1750445949623,6.1877421,103250.0,103240.0,0.00123652]
[1750445950451,5.98435246,103250.0,103240.0,0.00123652]
[1750445950677,6.17805706,103250.0,103240.0,0.00123652]
[1750445951332,6.1877421,103250.0,103240.0,0.03243652]
[1750445952013,6.1877421,103250.0,103240.0,0.00123652]
[1750445953339,6.67406683,103250.0,103240.0,0.00123652]
[1750445953633,6.70716683,103250.0,103240.0,0.00123652]
[1750445953836,6.24395347,103250.0,103240.0,0.00123652]
[1750445953996,6.49595347,103250.0,103240.0,0.00123652]
[1750445954192,6.46285347,103250.0,103240.0,0.00123652]
[1750445954420,6.46185347,103250.0,103240.0,0.00123652]
[1750445954630,6.46285347,103250.0,103240.0,0.00123652]
[1750445955037,6.46285347,103250.0,103240.0,0.00023652]
[1750445955247,6.46385347,103250.0,103240.0,0.00023652]
[1750445955797,6.46870928,103250.0,103230.0,0.0652]
[1750445955989,6.11356899,103240.0,103230.0,0.06524699]
[1750445957226,6.11356899,103240.0,103230.0,0.06724699]
[1750445957882,6.20883884,103240.0,103230.0,0.03484699]
[1750445958083,6.11356899,103240.0,103230.0,0.03484699]
[1750445958740,6.11356899,103240.0,103230.0,0.00224699]
[1750445958951,6.60176899,103240.0,103230.0,0.00224699]
[1750445960041,0.57612903,103230.0,103220.0,0.0001]
[1750445960256,6.54106559,103230.0,103220.0,0.00014705]
[1750445960466,6.55560644,103230.0,103220.0,0.00014705]
[1750445960875,0.54462874,103220.0,103210.0,5.295e-05]
[1750445961091,6.05683194,103220.0,103210.0,5.295e-05]
[1750445961283,6.18480179,103220.0,103210.0,5.295e-05]
[1750445961728,6.64801515,103220.0,103210.0,5.295e-05]
[1750445962180,6.72059402,103220.0,103210.0,0.00105295]
[1750445962394,6.723367,103220.0,103210.0,0.00105295]
[1750445962604,7.24049402,103220.0,103210.0,0.001]
[1750445962811,5.26642246,103210.0,103200.0,0.0324]
[1750445963018,6.57197487,103210.0,103200.0,0.0001]
[1750445963693,6.60467487,103210.0,103200.0,0.0001]
[1750445964736,6.60667487,103210.0,103200.0,0.0001]
[1750445965373,6.44885904,103210.0,103200.0,0.0001]
[1750445965551,6.45854783,103210.0,103200.0,0.0001]
[1750445967199,5.53212111,103210.0,103200.0,0.0001]
[1750445967422,6.42584783,103210.0,103200.0,0.0001]
[1750445967632,6.33057798,103210.0,103200.0,0.0001]
[1750445967841,5.40415126,103210.0,103200.0,0.032]
[1750445968048,6.33057798,103210.0,103200.0,0.032]
[1750445969501,6.33057798,103210.0,103200.0,0.0625]
[1750445969721,6.42584783,103210.0,103200.0,0.0625]
[1750445970302,5.91919332,103210.0,103200.0,0.0625]
[1750445970512,5.89607641,103210.0,103200.0,0.06365]
[1750445971975,5.43286305,103210.0,103200.0,0.06365]
[1750445972189,5.89607641,103210.0,103200.0,0.06365]
[1750445972821,6.35928977,103210.0,103200.0,0.0625]
[1750445973023,6.36048977,103210.0,103200.0,0.0625]
[1750445973229,6.47886078,103210.0,103200.0,0.032]
[1750445973949,6.47886078,103210.0,103200.0,0.0001]
[1750445974151,6.50797278,103210.0,103200.0,0.0001]
[1750445974488,6.50797278,103210.0,103200.0,0.0302]
[1750445976562,6.50797284,103210.0,103200.0,0.0302]
[1750445978029,6.50797284,103210.0,103200.0,0.0616]
[1750445979309,5.74068963,103210.0,103200.0,0.0616]
[1750445979526,5.94828963,103210.0,103200.0,0.06275]
[1750445979735,5.92518841,103210.0,103200.0,0.25654844]
[1750445979954,5.66724671,103210.0,103200.0,0.27592762]
[1750445980178,10.78963195,103210.0,103200.0,0.32582882]
[1750445980392,10.95391195,103210.0,103200.0,0.33551808]
[1750445980603,10.95391195,103210.0,103200.0,0.33551817]
[1750445980820,10.95391195,103210.0,103200.0,0.32582891]
[1750445980821,11.14769162,103210.0,103200.0,0.32582891]
[1750445981040,6.42273762,103210.0,103200.0,0.27592781]
[1750445981252,6.23964693,103210.0,103200.0,0.2953068]
[1750445981459,6.23464693,103210.0,103200.0,0.2953068]
[1750445981877,6.23664693,103210.0,103200.0,0.2953068]
[1750445982072,5.59946459,103210.0,103200.0,0.30499615]
[1750445982301,6.06267795,103210.0,103200.0,0.29530642]
[1750445982725,6.05298916,103210.0,103200.0,0.29530642]
[1750445982833,6.05298916,103210.0,103200.0,0.30499568]
[1750445983033,6.05298916,103210.0,103200.0,0.29530642]
[1750445983332,6.25645762,103210.0,103200.0,0.275928]
[1750445983562,6.06267795,103210.0,103200.0,0.28561754]
[1750445983764,6.06267795,103210.0,103200.0,0.29530699]
[1750445983967,6.07236693,103210.0,103200.0,0.29530699]
[1750445984193,6.05298916,103210.0,103200.0,0.30499625]
[1750445984418,6.00966916,103210.0,103200.0,0.30499625]
[1750445984597,5.5897758,103210.0,103200.0,0.30499625]
[1750445984806,6.06267786,103210.0,103200.0,0.30499625]
[1750445985225,6.06267776,103210.0,103200.0,0.30499568]
[1750445985424,6.06267776,103210.0,103200.0,0.28561707]
[1750445985581,5.73236664,103210.0,103200.0,0.28561707]
[1750445985779,5.68392429,103210.0,103200.0,0.29530633]
[1750445986019,5.56922159,103210.0,103200.0,0.34423832]
[1750445986471,0.003,103210.0,103200.0,0.34423832]
[1750445986670,0.003,103210.0,103200.0,0.80745168]
[1750445986884,0.003,103210.0,103200.0,0.34423832]
[1750445987672,0.002,103210.0,103200.0,0.34423832]
[1750445987831,0.002,103210.0,103200.0,0.34623832]
[1750445988026,5.89653336,103220.0,103210.0,0.28604547]
[1750445988374,5.89653336,103220.0,103210.0,0.33293339]
[1750445988606,5.43332,103220.0,103210.0,0.33293339]
[1750445989397,0.04332,103220.0,103210.0,0.49713339]
[1750445990212,0.50653336,103220.0,103210.0,0.49713339]
[1750445990387,0.50653336,103220.0,103210.0,0.49813339]
[1750445991095,0.04332,103220.0,103210.0,0.49813339]
[1750445992497,5.87763703,103240.0,103230.0,0.26727903]
[1750445992696,5.70360885,103240.0,103230.0,0.33469423]
[1750445992922,5.91590466,103240.0,103230.0,0.34438086]
[1750445993137,5.92558997,103240.0,103230.0,0.3540673]
[1750445993315,5.93527576,103240.0,103230.0,0.33469432]
[1750445993552,5.94496174,103240.0,103230.0,0.33469432]
[1750445993750,6.13300025,103240.0,103230.0,0.26727922]
[1750445994014,6.13500025,103240.0,103230.0,0.26727922]
[1750445994242,6.13500025,103240.0,103230.0,0.25759212]
[1750445994467,5.46837746,103240.0,103230.0,0.28665267]
[1750445994670,5.92959082,103240.0,103230.0,0.28665286]
[1750445994881,5.91990484,103240.0,103230.0,0.29633959]
[1750445995101,5.91690484,103240.0,103230.0,0.30602622]
[1750445995303,5.92659072,103240.0,103230.0,0.29633959]
[1750445995511,5.85421336,103240.0,103230.0,0.35503608]
[1750445995719,5.86489877,103240.0,103230.0,0.35503608]
[1750445995907,5.90613877,103240.0,103230.0,0.35503608]
[1750445996126,5.89645336,103240.0,103230.0,0.35503608]
[1750445996332,0.9994581,103250.0,103240.0,0.222781]
[1750445996548,6.08315404,103250.0,103240.0,0.34307637]
[1750445996774,0.04338079,103250.0,103240.0,0.34307637]
[1750445996961,0.40260904,103250.0,103240.0,0.28773035]
[1750445997126,0.40260895,103250.0,103240.0,0.28773035]
[1750445997604,0.86582231,103250.0,103240.0,0.28773035]
[1750445997896,0.86582231,103250.0,103240.0,0.28873035]
[1750445998098,0.84645336,103250.0,103240.0,0.28873035]
[1750445998354,0.04324,103250.0,103240.0,0.3533936]
[1750445998544,5.55199105,103270.0,103260.0,0.21420394]
[1750445998744,5.77918714,103270.0,103260.0,0.27800394]
[1750445998893,5.77918714,103270.0,103260.0,0.28768776]
[1750445999094,5.9356553,103270.0,103260.0,0.31769442]
[1750445999372,5.92597214,103270.0,103260.0,0.31769442]
[1750445999573,5.9356553,103270.0,103260.0,0.27800394]
[1750445999805,5.93565521,103270.0,103260.0,0.28768776]
[1750446000020,5.92997214,103270.0,103260.0,0.29737148]
[1750446000280,5.92997214,103270.0,103260.0,0.28768776]
[1750446000514,6.13532248,103270.0,103260.0,0.25863584]
[1750446000759,6.12563988,103270.0,103260.0,0.25863584]
[1750446001248,6.12363988,103270.0,103260.0,0.25863584]
[1750446001485,5.27273786,103260.0,103250.0,0.0632]
[1750446001712,0.55307458,103250.0,103240.0,0.25692336]
[1750446001945,6.16156687,103250.0,103240.0,0.0632]
[1750446002159,6.16270687,103250.0,103240.0,0.25692336]
[1750446002631,6.19110028,103250.0,103240.0,0.25692336]
[1750446002855,5.72788692,103250.0,103240.0,0.25692336]
[1750446003058,6.30896251,103250.0,103240.0,0.25692336]
[1750446003272,6.10557287,103250.0,103240.0,0.25692336]
[1750446003575,5.73643177,103250.0,103240.0,0.31681565]
[1750446003775,5.73643177,103250.0,103240.0,0.32650163]
[1750446003980,5.73643177,103250.0,103240.0,0.25807336]
[1750446004203,6.3078227,103250.0,103240.0,0.25892336]
[1750446004605,6.3078227,103250.0,103240.0,0.26092336]
[1750446004837,6.29813776,103250.0,103240.0,0.0365]
[1750446005037,6.29927776,103250.0,103240.0,0.23022336]
[1750446005256,6.29927776,103250.0,103240.0,0.26232336]
[1750446005625,6.3078227,103250.0,103240.0,0.33801374]
[1750446005821,6.31750736,103250.0,103240.0,0.27200952]
[1750446006024,6.48158736,103250.0,103240.0,0.28284559]
[1750446006224,6.48158736,103250.0,103240.0,0.29253157]
[1750446006491,6.32811532,103250.0,103240.0,0.28284559]
[1750446006700,6.14158736,103250.0,103240.0,0.26347336]
[1750446006909,6.1319027,103250.0,103240.0,0.26347336]
[1750446007118,6.12221776,103250.0,103240.0,0.26232336]
[1750446007679,5.9381981,103250.0,103240.0,0.27200934]
[1750446007879,5.94788257,103250.0,103240.0,0.27315934]
[1750446008077,5.9575678,103250.0,103240.0,0.28284522]
[1750446008409,5.9575678,103250.0,103240.0,0.323724]
[1750446008573,6.28788257,103250.0,103240.0,0.27315934]
[1750446008771,6.2975678,103250.0,103240.0,0.28284522]
[1750446008974,6.48158774,103250.0,103240.0,0.26232336]
[1750446009405,6.5151428,103250.0,103240.0,0.0686]
[1750446009605,6.5151428,103250.0,103240.0,0.23022336]
[1750446009606,6.5162828,103250.0,103240.0,0.23022336]
[1750446010032,6.5162828,103250.0,103240.0,0.27060952]
[1750446010236,6.5162828,103250.0,103240.0,0.26092336]
[1750446010501,6.51417442,103250.0,103240.0,0.34615984]